[Event "*** SCC Grand Prix: Titled Tuesday Blitz"]
[Site "Chess.com"]
[Date "2020.08.25"]
[Round "2"]
[White "el-roedor"]
[Black "alexsergeyev"]
[Result "1-0"]
[WhiteElo "2649"]
[BlackElo "2350"]
[TimeControl "180+1"]
[EndTime "10:19:32 PDT"]
[Termination "el-roedor won on time"]

1. d4 {[%clk 0:03:00.9]} 1... d5 {[%clk 0:02:59.2]} 2. c4 {[%clk 0:03:00.2]}
2... c6 {[%clk 0:02:59.3]} 3. Nf3 {[%clk 0:02:59.8]} 3... Nf6 {[%clk 0:02:59]}
4. Nc3 {[%clk 0:02:58.5]} 4... dxc4 {[%clk 0:02:59]} 5. a4 {[%clk 0:02:57.9]}
5... Bg4 {[%clk 0:02:58.3]} 6. Ne5 {[%clk 0:02:57]} 6... Bh5 {[%clk 0:02:58]} 7.
Nxc4 {[%clk 0:02:54.3]} 7... e6 {[%clk 0:02:57.7]} 8. g3 {[%clk 0:02:48.8]} 8...
c5 {[%clk 0:02:56]} 9. dxc5 {[%clk 0:02:34.6]} 9... Qxd1+ {[%clk 0:02:53.2]} 10.
Nxd1 {[%clk 0:02:35.5]} 10... Bxc5 {[%clk 0:02:52.3]} 11. Be3 {[%clk 0:02:35.4]}
11... Na6 {[%clk 0:02:46.2]} 12. Bg2 {[%clk 0:02:21.8]} 12... Nd5 {[%clk
0:02:22.3]} 13. Bxc5 {[%clk 0:02:11.1]} 13... Nxc5 {[%clk 0:02:21]} 14. Bxd5
{[%clk 0:02:06.3]} 14... exd5 {[%clk 0:02:19.9]} 15. Nd6+ {[%clk 0:02:01.8]}
15... Kd7 {[%clk 0:02:07.8]} 16. Nf5 {[%clk 0:02:01.8]} 16... Rhe8 {[%clk
0:01:45.3]} 17. Nde3 {[%clk 0:01:41.9]} 17... Bg6 {[%clk 0:01:31.8]} 18. Nd4
{[%clk 0:01:35.4]} 18... Re4 {[%clk 0:01:13.4]} 19. Rd1 {[%clk 0:01:03.1]} 19...
Ne6 {[%clk 0:01:06.4]} 20. Nec2 {[%clk 0:00:51.2]} 20... Nxd4 {[%clk 0:00:52.9]}
21. Nxd4 {[%clk 0:00:49.4]} 21... Rc8 {[%clk 0:00:49.7]} 22. b3 {[%clk
0:00:40.5]} 22... Bh5 {[%clk 0:00:32.5]} 23. f3 {[%clk 0:00:38]} 23... Re5
{[%clk 0:00:26.9]} 24. Kf2 {[%clk 0:00:37.2]} 24... Rc3 {[%clk 0:00:22.2]} 25.
Rd2 {[%clk 0:00:33.2]} 25... Bg6 {[%clk 0:00:17.3]} 26. Rhd1 {[%clk 0:00:31.1]}
26... a6 {[%clk 0:00:16.2]} 27. h4 {[%clk 0:00:21.3]} 27... h6 {[%clk
0:00:14.7]} 28. Re1 {[%clk 0:00:20.3]} 28... Ke7 {[%clk 0:00:10.5]} 29. e3
{[%clk 0:00:17.3]} 29... Kf6 {[%clk 0:00:09.6]} 30. Ree2 {[%clk 0:00:15.6]}
30... Bd3 {[%clk 0:00:08.8]} 31. Re1 {[%clk 0:00:15.1]} 31... Bg6 {[%clk
0:00:08.9]} 32. Ra1 {[%clk 0:00:14.6]} 32... h5 {[%clk 0:00:06.2]} 33. Re1
{[%clk 0:00:14.6]} 33... Bd3 {[%clk 0:00:05.1]} 34. f4 {[%clk 0:00:10.6]} 34...
Re4 {[%clk 0:00:04.1]} 35. Nf3 {[%clk 0:00:10.5]} 1-0

[Event "*** SCC Grand Prix: Titled Tuesday Blitz"]
[Site "Chess.com"]
[Date "2020.08.25"]
[Round "2"]
[White "Grandmaster2B"]
[Black "Blagorod"]
[Result "1-0"]
[WhiteElo "2410"]
[BlackElo "2141"]
[TimeControl "180+1"]
[EndTime "10:19:32 PDT"]
[Termination "Grandmaster2B won by resignation"]

1. e4 {[%clk 0:03:00.9]} 1... e5 {[%clk 0:02:59.7]} 2. Nf3 {[%clk 0:03:00.8]}
2... Nf6 {[%clk 0:03:00.3]} 3. Nxe5 {[%clk 0:02:58.4]} 3... d6 {[%clk
0:03:00.6]} 4. Nd3 {[%clk 0:02:52.1]} 4... Nxe4 {[%clk 0:02:59.7]} 5. Qe2 {[%clk
0:02:52.4]} 5... Qe7 {[%clk 0:02:59]} 6. Nf4 {[%clk 0:02:52.6]} 6... Nf6 {[%clk
0:02:55.9]} 7. d4 {[%clk 0:02:51.3]} 7... Be6 {[%clk 0:02:48.8]} 8. Nxe6 {[%clk
0:02:35.5]} 8... fxe6 {[%clk 0:02:47.5]} 9. Bg5 {[%clk 0:02:29]} 9... Nc6 {[%clk
0:02:40.1]} 10. c3 {[%clk 0:02:27.4]} 10... h6 {[%clk 0:02:31.9]} 11. Bh4 {[%clk
0:02:21.3]} 11... g5 {[%clk 0:02:25.4]} 12. Bg3 {[%clk 0:02:18.7]} 12... O-O-O
{[%clk 0:02:24.5]} 13. Nd2 {[%clk 0:02:16.5]} 13... h5 {[%clk 0:02:19.2]} 14. h4
{[%clk 0:02:07.2]} 14... g4 {[%clk 0:02:17]} 15. O-O-O {[%clk 0:02:04.4]} 15...
Bh6 {[%clk 0:02:15.5]} 16. Kb1 {[%clk 0:02:00.9]} 16... Kb8 {[%clk 0:01:55.3]}
17. Nb3 {[%clk 0:01:55.7]} 17... Nd5 {[%clk 0:01:51.1]} 18. Qc2 {[%clk
0:01:43.5]} 18... Nb6 {[%clk 0:01:48]} 19. Bb5 {[%clk 0:01:34.9]} 19... e5
{[%clk 0:01:20]} 20. d5 {[%clk 0:01:15.6]} 20... Nxd5 {[%clk 0:01:12.1]} 21.
Rxd5 {[%clk 0:01:12.5]} 21... Qe6 {[%clk 0:01:12.5]} 22. Bxc6 {[%clk 0:00:55.1]}
22... bxc6 {[%clk 0:01:11.7]} 23. Rdd1 {[%clk 0:00:54]} 23... Kc8 {[%clk
0:01:01.4]} 24. Qe4 {[%clk 0:00:50]} 24... d5 {[%clk 0:00:59.8]} 25. Qxe5 {[%clk
0:00:46.8]} 25... Qxe5 {[%clk 0:01:00.1]} 26. Bxe5 {[%clk 0:00:47.7]} 26... Rhf8
{[%clk 0:00:59.1]} 27. Bd4 {[%clk 0:00:41.8]} 27... Rd7 {[%clk 0:00:54.4]} 28.
Bxa7 {[%clk 0:00:37.1]} 28... Rdf7 {[%clk 0:00:48.2]} 29. Bd4 {[%clk 0:00:32.9]}
29... Bf4 {[%clk 0:00:42.4]} 30. Rhe1 {[%clk 0:00:29.1]} 30... g3 {[%clk
0:00:41.3]} 31. fxg3 {[%clk 0:00:21.6]} 31... Bxg3 {[%clk 0:00:40.9]} 32. Re6
{[%clk 0:00:21.7]} 32... Bd6 {[%clk 0:00:38]} 33. Rh6 {[%clk 0:00:17.5]} 33...
Rf5 {[%clk 0:00:27.7]} 34. Bc5 {[%clk 0:00:11.6]} 34... Bxc5 {[%clk 0:00:25.2]}
35. Nxc5 {[%clk 0:00:12.5]} 35... Rf2 {[%clk 0:00:22.3]} 36. Rxc6 {[%clk
0:00:08]} 36... Rxg2 {[%clk 0:00:21]} 37. Ra6 {[%clk 0:00:08.1]} 37... Kd8
{[%clk 0:00:19.3]} 38. Ne6+ {[%clk 0:00:07.7]} 38... Ke7 {[%clk 0:00:19.7]} 39.
Nxf8 {[%clk 0:00:08.6]} 39... Kxf8 {[%clk 0:00:20.2]} 40. Rxd5 {[%clk 0:00:09]}
40... Ke7 {[%clk 0:00:19.1]} 41. Rxh5 {[%clk 0:00:08.8]} 41... Kd7 {[%clk
0:00:17.5]} 42. Rh7+ {[%clk 0:00:08.5]} 42... Kc8 {[%clk 0:00:17.3]} 43. Rc6
{[%clk 0:00:09.1]} 43... Rg1+ {[%clk 0:00:16.5]} 44. Kc2 {[%clk 0:00:09.5]}
44... Rg2+ {[%clk 0:00:17.1]} 45. Kb3 {[%clk 0:00:10.4]} 1-0

[Event "*** SCC Grand Prix: Titled Tuesday Blitz"]
[Site "Chess.com"]
[Date "2020.08.25"]
[Round "2"]
[White "Shota_Azaladze"]
[Black "rynos0411"]
[Result "1-0"]
[WhiteElo "2668"]
[BlackElo "2414"]
[TimeControl "180+1"]
[EndTime "10:19:34 PDT"]
[Termination "Shota_Azaladze won by checkmate"]

1. Nf3 {[%clk 0:03:00.9]} 1... Nf6 {[%clk 0:02:58.7]} 2. g3 {[%clk 0:03:01.4]}
2... g6 {[%clk 0:02:54.5]} 3. b3 {[%clk 0:03:00.4]} 3... Bg7 {[%clk 0:02:55.4]}
4. Bb2 {[%clk 0:03:00.6]} 4... O-O {[%clk 0:02:56.3]} 5. Bg2 {[%clk 0:03:00.5]}
5... d6 {[%clk 0:02:51.8]} 6. d4 {[%clk 0:02:59.7]} 6... Nc6 {[%clk 0:02:50.8]}
7. c4 {[%clk 0:02:57.6]} 7... e5 {[%clk 0:02:49.9]} 8. Nc3 {[%clk 0:02:52.9]}
8... Re8 {[%clk 0:02:46.6]} 9. dxe5 {[%clk 0:02:50.2]} 9... dxe5 {[%clk
0:02:43.6]} 10. O-O {[%clk 0:02:49]} 10... Bf5 {[%clk 0:02:40.3]} 11. Ng5 {[%clk
0:02:17.1]} 11... Qe7 {[%clk 0:02:31.8]} 12. Qc1 {[%clk 0:02:16.8]} 12... Rad8
{[%clk 0:02:30.7]} 13. Nd5 {[%clk 0:02:06.2]} 13... Nxd5 {[%clk 0:02:29]} 14.
Bxd5 {[%clk 0:02:07.1]} 14... Bh6 {[%clk 0:02:12.3]} 15. h4 {[%clk 0:01:52.4]}
15... Kg7 {[%clk 0:01:54.5]} 16. Ba3 {[%clk 0:01:37.8]} 16... Qd7 {[%clk
0:01:45.6]} 17. Qb2 {[%clk 0:01:26.2]} 17... f6 {[%clk 0:01:42.3]} 18. Nf7
{[%clk 0:01:25.5]} 18... Ra8 {[%clk 0:01:24.8]} 19. f4 {[%clk 0:01:24.3]} 19...
Nd4 {[%clk 0:01:20.6]} 20. e3 {[%clk 0:01:15.9]} 20... Ne6 {[%clk 0:01:19.9]}
21. Nxh6 {[%clk 0:01:14.6]} 21... Kxh6 {[%clk 0:01:19.2]} 22. fxe5 {[%clk
0:01:15.1]} 22... c6 {[%clk 0:01:10.2]} 23. e4 {[%clk 0:01:07.2]} 23... Bh3
{[%clk 0:00:55.9]} 24. Qd2+ {[%clk 0:01:02.3]} 24... g5 {[%clk 0:00:43.1]} 25.
Rxf6+ {[%clk 0:00:57.7]} 25... Kg7 {[%clk 0:00:43.1]} 26. hxg5 {[%clk
0:00:47.3]} 26... cxd5 {[%clk 0:00:39.7]} 27. exd5 {[%clk 0:00:48.2]} 27... Rad8
{[%clk 0:00:32.8]} 28. Qe3 {[%clk 0:00:40.5]} 28... Nf8 {[%clk 0:00:25.6]} 29.
Re1 {[%clk 0:00:35.3]} 29... Ng6 {[%clk 0:00:25.7]} 30. e6 {[%clk 0:00:34.7]}
30... Qc7 {[%clk 0:00:26]} 31. Bb2 {[%clk 0:00:34.6]} 31... Kg8 {[%clk
0:00:25.3]} 32. Rf7 {[%clk 0:00:33.2]} 32... Re7 {[%clk 0:00:24.9]} 33. Rf6
{[%clk 0:00:25.1]} 33... b5 {[%clk 0:00:23]} 34. Kh2 {[%clk 0:00:21.5]} 34...
Bg4 {[%clk 0:00:22]} 35. Qd4 {[%clk 0:00:20]} 35... Rg7 {[%clk 0:00:15.8]} 36.
Qxg4 {[%clk 0:00:18.1]} 36... bxc4 {[%clk 0:00:16.3]} 37. Qxc4 {[%clk
0:00:17.7]} 37... Qe7 {[%clk 0:00:13.5]} 38. Ref1 {[%clk 0:00:15.3]} 38... a5
{[%clk 0:00:07.1]} 39. Qd4 {[%clk 0:00:15.3]} 39... a4 {[%clk 0:00:06.3]} 40.
Rf7 {[%clk 0:00:15.4]} 40... Rxf7 {[%clk 0:00:04.7]} 41. exf7+ {[%clk
0:00:15.4]} 41... Kf8 {[%clk 0:00:04.7]} 42. Qg7# {[%clk 0:00:15]} 1-0

[Event "*** SCC Grand Prix: Titled Tuesday Blitz"]
[Site "Chess.com"]
[Date "2020.08.25"]
[Round "2"]
[White "Noam_Vitenberg"]
[Black "Semen_Khanin"]
[Result "0-1"]
[WhiteElo "2507"]
[BlackElo "2778"]
[TimeControl "180+1"]
[EndTime "10:19:35 PDT"]
[Termination "Semen_Khanin won by resignation"]

1. d4 {[%clk 0:03:00.9]} 1... Nf6 {[%clk 0:02:59.7]} 2. c4 {[%clk 0:03:01]} 2...
g6 {[%clk 0:02:59.4]} 3. Nc3 {[%clk 0:03:00.6]} 3... d5 {[%clk 0:03:00]} 4. cxd5
{[%clk 0:03:00.7]} 4... Nxd5 {[%clk 0:03:00.2]} 5. e4 {[%clk 0:03:01.3]} 5...
Nxc3 {[%clk 0:03:00.9]} 6. bxc3 {[%clk 0:03:01.9]} 6... Bg7 {[%clk 0:03:01.6]}
7. Nf3 {[%clk 0:03:02.1]} 7... c5 {[%clk 0:03:02.2]} 8. Be3 {[%clk 0:03:02.5]}
8... Qa5 {[%clk 0:03:01.8]} 9. Qd2 {[%clk 0:03:02.4]} 9... O-O {[%clk 0:03:02]}
10. Rc1 {[%clk 0:02:59.7]} 10... Nd7 {[%clk 0:03:02.1]} 11. d5 {[%clk
0:02:59.1]} 11... Nf6 {[%clk 0:02:58.8]} 12. Bd3 {[%clk 0:02:56.2]} 12... c4
{[%clk 0:02:58.3]} 13. Bb1 {[%clk 0:02:53.3]} 13... e6 {[%clk 0:02:58.7]} 14. d6
{[%clk 0:02:51.2]} 14... Ng4 {[%clk 0:02:53.1]} 15. O-O {[%clk 0:02:47.6]} 15...
Nxe3 {[%clk 0:02:51.6]} 16. Qxe3 {[%clk 0:02:46.6]} 16... Bd7 {[%clk 0:02:38]}
17. e5 {[%clk 0:02:46]} 17... Bc6 {[%clk 0:02:31.3]} 18. Rfe1 {[%clk 0:02:46.2]}
18... Rad8 {[%clk 0:02:27.1]} 19. Nd4 {[%clk 0:02:42.1]} 19... Bd5 {[%clk
0:02:26.7]} 20. Re2 {[%clk 0:02:35.2]} 20... b5 {[%clk 0:02:26.5]} 21. Be4
{[%clk 0:02:31.4]} 21... Bxe5 {[%clk 0:02:21.2]} 22. Bxd5 {[%clk 0:02:31.6]}
22... Bxd4 {[%clk 0:02:21.6]} 23. Qxd4 {[%clk 0:02:30.9]} 23... exd5 {[%clk
0:02:21.9]} 24. Qxd5 {[%clk 0:02:31.5]} 24... Rd7 {[%clk 0:02:20.2]} 25. Re7
{[%clk 0:02:28.5]} 25... Qd8 {[%clk 0:02:18.4]} 26. Rxd7 {[%clk 0:02:06.5]}
26... Qxd7 {[%clk 0:02:18.3]} 27. Re1 {[%clk 0:02:07.1]} 27... Rd8 {[%clk
0:02:05.1]} 28. Re7 {[%clk 0:02:06.7]} 28... Qf5 {[%clk 0:02:05.7]} 29. Qxf5
{[%clk 0:02:03.1]} 29... gxf5 {[%clk 0:02:05.6]} 30. Kf1 {[%clk 0:01:46.1]}
30... a6 {[%clk 0:01:58]} 31. a4 {[%clk 0:01:09.2]} 31... bxa4 {[%clk
0:00:29.8]} 32. Rc7 {[%clk 0:01:08.4]} 32... Rxd6 {[%clk 0:00:30]} 33. Rxc4
{[%clk 0:01:08.4]} 33... Rd1+ {[%clk 0:00:30]} 34. Ke2 {[%clk 0:01:06]} 34...
Ra1 {[%clk 0:00:30.5]} 35. Rc6 {[%clk 0:01:06.1]} 35... Kf8 {[%clk 0:00:27.2]}
36. Rxa6 {[%clk 0:01:06]} 36... Ke7 {[%clk 0:00:27.9]} 37. Kf3 {[%clk
0:01:06.1]} 37... Ra2 {[%clk 0:00:24.6]} 38. c4 {[%clk 0:00:55.8]} 38... a3
{[%clk 0:00:24.3]} 39. c5 {[%clk 0:00:54.3]} 39... Kd7 {[%clk 0:00:24]} 40. Ke3
{[%clk 0:00:52.8]} 40... Kc7 {[%clk 0:00:23.8]} 41. Rf6 {[%clk 0:00:44.8]} 41...
Ra1 {[%clk 0:00:21]} 42. Rxf7+ {[%clk 0:00:41.6]} 42... Kc6 {[%clk 0:00:21.3]}
43. Rxf5 {[%clk 0:00:37.5]} 43... a2 {[%clk 0:00:18.8]} 44. Rf6+ {[%clk
0:00:38]} 44... Kxc5 {[%clk 0:00:18.9]} 45. Ra6 {[%clk 0:00:37.7]} 45... Re1+
{[%clk 0:00:18.6]} 46. Kf4 {[%clk 0:00:37.3]} 46... a1=Q {[%clk 0:00:19]} 47.
Rxa1 {[%clk 0:00:37]} 47... Rxa1 {[%clk 0:00:19.6]} 48. Ke5 {[%clk 0:00:36.3]}
48... Ra2 {[%clk 0:00:19.2]} 49. f4 {[%clk 0:00:34.8]} 49... Rxg2 {[%clk
0:00:19.2]} 50. f5 {[%clk 0:00:34.7]} 50... Rxh2 {[%clk 0:00:19.4]} 51. f6
{[%clk 0:00:34.7]} 51... Rf2 {[%clk 0:00:19.6]} 52. Ke6 {[%clk 0:00:34.2]} 52...
h5 {[%clk 0:00:19.8]} 53. f7 {[%clk 0:00:34.8]} 53... h4 {[%clk 0:00:20.1]} 54.
Ke7 {[%clk 0:00:35.5]} 54... h3 {[%clk 0:00:20.1]} 55. f8=Q {[%clk 0:00:36.4]}
55... Rxf8 {[%clk 0:00:19.9]} 56. Kxf8 {[%clk 0:00:37.3]} 56... h2 {[%clk
0:00:20.4]} 0-1

[Event "*** SCC Grand Prix: Titled Tuesday Blitz"]
[Site "Chess.com"]
[Date "2020.08.25"]
[Round "2"]
[White "BasilSmash"]
[Black "topotun"]
[Result "0-1"]
[WhiteElo "2477"]
[BlackElo "2722"]
[TimeControl "180+1"]
[EndTime "10:19:35 PDT"]
[Termination "topotun won by checkmate"]

1. d4 {[%clk 0:02:57.2]} 1... Nf6 {[%clk 0:02:59.6]} 2. Nf3 {[%clk 0:02:56.8]}
2... c5 {[%clk 0:02:59.5]} 3. d5 {[%clk 0:02:56.1]} 3... d6 {[%clk 0:02:59.9]}
4. Nc3 {[%clk 0:02:55.1]} 4... g6 {[%clk 0:03:00]} 5. e4 {[%clk 0:02:54.6]} 5...
Bg7 {[%clk 0:03:00.6]} 6. Bb5+ {[%clk 0:02:54.1]} 6... Bd7 {[%clk 0:03:00.8]} 7.
a4 {[%clk 0:02:53.6]} 7... Bxb5 {[%clk 0:03:01.1]} 8. axb5 {[%clk 0:02:53.2]}
8... O-O {[%clk 0:03:01.3]} 9. O-O {[%clk 0:02:52.8]} 9... Nbd7 {[%clk
0:03:01.4]} 10. h3 {[%clk 0:02:47.4]} 10... Ne8 {[%clk 0:03:01.1]} 11. Re1
{[%clk 0:02:41.9]} 11... Nc7 {[%clk 0:03:00.8]} 12. Qe2 {[%clk 0:02:35.6]} 12...
Nb6 {[%clk 0:03:00.6]} 13. Bf4 {[%clk 0:02:23.6]} 13... Qd7 {[%clk 0:02:59.2]}
14. e5 {[%clk 0:02:20.4]} 14... Ncxd5 {[%clk 0:02:52.3]} 15. Nxd5 {[%clk
0:02:09.7]} 15... Nxd5 {[%clk 0:02:53.2]} 16. Bg3 {[%clk 0:02:08.9]} 16... Nc7
{[%clk 0:02:25.2]} 17. exd6 {[%clk 0:01:50.2]} 17... exd6 {[%clk 0:02:26.1]} 18.
Rad1 {[%clk 0:01:48.7]} 18... Nxb5 {[%clk 0:01:57.1]} 19. c3 {[%clk 0:01:04.3]}
19... Rfe8 {[%clk 0:01:50.3]} 20. Qc4 {[%clk 0:00:59.4]} 20... Rxe1+ {[%clk
0:01:27.7]} 21. Nxe1 {[%clk 0:00:59.7]} 21... a6 {[%clk 0:01:16]} 22. Qxc5
{[%clk 0:00:51]} 22... Re8 {[%clk 0:00:44.8]} 23. Nf3 {[%clk 0:00:25]} 23... Re2
{[%clk 0:00:23.5]} 24. c4 {[%clk 0:00:14.6]} 24... Qe8 {[%clk 0:00:18.2]} 25.
Qd5 {[%clk 0:00:08.4]} 25... Na7 {[%clk 0:00:12.2]} 26. Qxb7 {[%clk 0:00:07.2]}
26... Nc8 {[%clk 0:00:11.5]} 27. Bxd6 {[%clk 0:00:02.8]} 27... Rxb2 {[%clk
0:00:11.2]} 28. Qc7 {[%clk 0:00:02.4]} 28... Nxd6 {[%clk 0:00:08.5]} 29. Rxd6
{[%clk 0:00:01.9]} 29... Rb1+ {[%clk 0:00:08.9]} 30. Kh2 {[%clk 0:00:01.5]}
30... Be5+ {[%clk 0:00:08.9]} 31. Nxe5 {[%clk 0:00:01.6]} 31... Qxe5+ {[%clk
0:00:09.8]} 32. g3 {[%clk 0:00:02.5]} 32... Qe4 {[%clk 0:00:09.6]} 33. Rd8+
{[%clk 0:00:02]} 33... Kg7 {[%clk 0:00:10]} 34. Qd6 {[%clk 0:00:01.7]} 34...
Rh1# {[%clk 0:00:09.5]} 0-1

[Event "*** SCC Grand Prix: Titled Tuesday Blitz"]
[Site "Chess.com"]
[Date "2020.08.25"]
[Round "2"]
[White "vinniethepooh"]
[Black "MuradNuri"]
[Result "0-1"]
[WhiteElo "2665"]
[BlackElo "2467"]
[TimeControl "180+1"]
[EndTime "10:19:36 PDT"]
[Termination "MuradNuri won on time"]

1. e4 {[%clk 0:03:00.9]} 1... c5 {[%clk 0:02:59.4]} 2. Nf3 {[%clk 0:03:01]} 2...
Nf6 {[%clk 0:02:59.9]} 3. Nc3 {[%clk 0:03:00.2]} 3... d5 {[%clk 0:03:00]} 4.
exd5 {[%clk 0:02:58.8]} 4... Nxd5 {[%clk 0:03:00.9]} 5. Bb5+ {[%clk 0:02:56.6]}
5... Bd7 {[%clk 0:03:00.8]} 6. Qe2 {[%clk 0:02:53.3]} 6... Nb4 {[%clk
0:02:56.8]} 7. d4 {[%clk 0:02:31]} 7... Bxb5 {[%clk 0:02:47.1]} 8. Nxb5 {[%clk
0:02:07.4]} 8... a6 {[%clk 0:02:33.5]} 9. c3 {[%clk 0:01:25.7]} 9... N4c6 {[%clk
0:02:16.4]} 10. d5 {[%clk 0:01:13.1]} 10... axb5 {[%clk 0:02:13.9]} 11. dxc6
{[%clk 0:01:13.5]} 11... bxc6 {[%clk 0:02:13.9]} 12. O-O {[%clk 0:01:14.1]}
12... e6 {[%clk 0:01:42.3]} 13. Bf4 {[%clk 0:01:13.8]} 13... Nd7 {[%clk
0:01:19.7]} 14. Rfd1 {[%clk 0:01:09.7]} 14... Qc8 {[%clk 0:01:16.2]} 15. c4
{[%clk 0:01:02.1]} 15... bxc4 {[%clk 0:01:04.6]} 16. Nd2 {[%clk 0:00:50.3]}
16... Be7 {[%clk 0:00:39.6]} 17. Nxc4 {[%clk 0:00:47.6]} 17... O-O {[%clk
0:00:40]} 18. Rd3 {[%clk 0:00:40]} 18... Qb7 {[%clk 0:00:34.5]} 19. Rad1 {[%clk
0:00:36.6]} 19... Nf6 {[%clk 0:00:34.3]} 20. Rg3 {[%clk 0:00:26]} 20... Rfd8
{[%clk 0:00:33.3]} 21. Rxd8+ {[%clk 0:00:08.3]} 21... Rxd8 {[%clk 0:00:32]} 22.
h4 {[%clk 0:00:07.9]} 22... Nd5 {[%clk 0:00:26]} 23. Be5 {[%clk 0:00:06.1]}
23... f6 {[%clk 0:00:21.2]} 24. Bc3 {[%clk 0:00:06.3]} 24... e5 {[%clk
0:00:17.9]} 25. Bd2 {[%clk 0:00:06]} 25... Qd7 {[%clk 0:00:14.7]} 26. h5 {[%clk
0:00:05.9]} 26... Kh8 {[%clk 0:00:14.7]} 27. Kh2 {[%clk 0:00:04]} 27... Ra8
{[%clk 0:00:13.1]} 28. Qe4 {[%clk 0:00:03.5]} 28... Bf8 {[%clk 0:00:10.8]} 29.
Qh4 {[%clk 0:00:03.3]} 29... Rxa2 {[%clk 0:00:09.9]} 30. h6 {[%clk 0:00:02.3]}
30... g6 {[%clk 0:00:07]} 31. Ne3 {[%clk 0:00:02.7]} 31... Be7 {[%clk
0:00:03.9]} 32. Nxd5 {[%clk 0:00:03.2]} 32... cxd5 {[%clk 0:00:03.6]} 33. Be3
{[%clk 0:00:02]} 33... Ra4 {[%clk 0:00:04.1]} 0-1

[Event "*** SCC Grand Prix: Titled Tuesday Blitz"]
[Site "Chess.com"]
[Date "2020.08.25"]
[Round "2"]
[White "Djager97"]
[Black "Jabberwockiez"]
[Result "1-0"]
[WhiteElo "2455"]
[BlackElo "2252"]
[TimeControl "180+1"]
[EndTime "10:19:36 PDT"]
[Termination "Djager97 won on time"]

1. e4 {[%clk 0:03:00.9]} 1... c5 {[%clk 0:02:59.3]} 2. Nf3 {[%clk 0:03:01.3]}
2... d6 {[%clk 0:02:58.9]} 3. d4 {[%clk 0:03:01.8]} 3... cxd4 {[%clk 0:02:58.7]}
4. Nxd4 {[%clk 0:03:02.7]} 4... Nf6 {[%clk 0:02:57.2]} 5. Nc3 {[%clk 0:03:03.3]}
5... Nc6 {[%clk 0:02:56.8]} 6. Bg5 {[%clk 0:03:03]} 6... e6 {[%clk 0:02:56.8]}
7. Qd2 {[%clk 0:03:03.1]} 7... a6 {[%clk 0:02:56.7]} 8. O-O-O {[%clk 0:03:02.4]}
8... Bd7 {[%clk 0:02:57]} 9. f4 {[%clk 0:03:02.8]} 9... h6 {[%clk 0:02:53]} 10.
Bh4 {[%clk 0:02:59.9]} 10... Be7 {[%clk 0:02:52.7]} 11. Nf3 {[%clk 0:02:27.4]}
11... O-O {[%clk 0:02:43]} 12. e5 {[%clk 0:02:19.2]} 12... Nd5 {[%clk
0:02:10.7]} 13. Bxe7 {[%clk 0:02:14.3]} 13... Qxe7 {[%clk 0:02:10.2]} 14. Nxd5
{[%clk 0:02:08.3]} 14... exd5 {[%clk 0:02:11.1]} 15. Qxd5 {[%clk 0:02:07.8]}
15... dxe5 {[%clk 0:01:26.8]} 16. Qxd7 {[%clk 0:02:03]} 16... Qb4 {[%clk
0:01:26.9]} 17. Qd2 {[%clk 0:01:57.3]} 17... Qa4 {[%clk 0:01:23]} 18. Kb1 {[%clk
0:01:21.5]} 18... exf4 {[%clk 0:01:18.3]} 19. Bd3 {[%clk 0:01:18.6]} 19... Nb4
{[%clk 0:01:15.4]} 20. a3 {[%clk 0:01:17.8]} 20... Nxd3 {[%clk 0:01:12.8]} 21.
Qxd3 {[%clk 0:01:18.7]} 21... Rac8 {[%clk 0:01:05.5]} 22. Rhe1 {[%clk
0:01:16.2]} 22... b5 {[%clk 0:01:04.1]} 23. Re4 {[%clk 0:01:15.5]} 23... Rc4
{[%clk 0:01:02.7]} 24. Rxc4 {[%clk 0:01:14.4]} 24... bxc4 {[%clk 0:01:03.6]} 25.
Qc3 {[%clk 0:01:13.6]} 25... Rb8 {[%clk 0:00:59.9]} 26. Rd4 {[%clk 0:01:10.7]}
26... Rc8 {[%clk 0:00:52]} 27. Rxf4 {[%clk 0:01:08.8]} 27... Qd7 {[%clk
0:00:51.2]} 28. Qd4 {[%clk 0:01:04.2]} 28... Qb5 {[%clk 0:00:47.1]} 29. Ka2
{[%clk 0:00:40.9]} 29... c3 {[%clk 0:00:40.3]} 30. b3 {[%clk 0:00:40.9]} 30...
Qf1 {[%clk 0:00:37.3]} 31. Qd7 {[%clk 0:00:30.3]} 31... Rf8 {[%clk 0:00:29.9]}
32. Qc7 {[%clk 0:00:29.2]} 32... Qc1 {[%clk 0:00:23.4]} 33. Qxc3 {[%clk
0:00:24.8]} 33... Qxf4 {[%clk 0:00:23]} 34. Kb2 {[%clk 0:00:22.9]} 34... Re8
{[%clk 0:00:22.3]} 35. a4 {[%clk 0:00:18.2]} 35... Re2 {[%clk 0:00:20.7]} 36.
Qc8+ {[%clk 0:00:17.6]} 36... Kh7 {[%clk 0:00:20.4]} 37. Qxa6 {[%clk 0:00:17.8]}
37... Qe4 {[%clk 0:00:18.9]} 38. Qc8 {[%clk 0:00:11.9]} 1-0